fUSD/lending_fUSD_20250117
["ID","MTS","AMOUNT","RATE_DAILY","PERIOD"]
[349370373,1737141033926,-500.0,0.00022198,2]
[349370374,1737141033935,-504.48,0.00022198,2]
[349370375,1737141033945,-500.0,0.00022198,2]
[349370376,1737141033956,-335.1,0.00022198,2]
[349370377,1737141033965,-499.7,0.00022198,2]
[349370378,1737141033974,-500.0,0.00022198,2]
[349370379,1737141033984,-500.0,0.00022198,2]
[349370380,1737141033994,-500.0,0.00022198,2]
[349370381,1737141034003,-500.0,0.00022198,2]
[349370382,1737141034013,-500.0,0.00022198,2]
[349370383,1737141034022,-279.65,0.00022198,2]
[349370384,1737141034032,-550.25,0.00022198,2]
[349370385,1737141034042,-500.0,0.00022198,2]
[349370386,1737141034051,-500.0,0.00022198,2]
[349370387,1737141034061,-500.0,0.00022198,2]
[349370388,1737141034071,-358.03965,0.00022198,2]
[349370389,1737141034081,-500.0,0.00022198,2]
[349370390,1737141034090,-500.0,0.00022198,2]
[349370391,1737141034099,-312.93,0.00022198,2]
[349370392,1737141034109,-267.51,0.00022198,2]
[349370393,1737141034119,-500.0,0.00022198,2]
[349370394,1737141034129,-500.0,0.00022198,2]
[349370395,1737141034139,-500.0,0.00022198,2]
[349370396,1737141034149,-500.0,0.00022198,2]
[349370397,1737141034159,-606.78,0.00022198,2]
[349370398,1737141034169,-500.0,0.00022198,2]
[349370399,1737141034179,-462.42,0.00022198,2]
[349370400,1737141034189,-500.0,0.00022198,2]
[349370401,1737141034199,-500.0,0.00022198,2]
[349370402,1737141034210,-500.0,0.00022198,2]
[349370403,1737141034220,-423.06,0.00022198,2]
[349370404,1737141034230,-500.0,0.00022198,2]
[349370405,1737141034240,-371.18,0.00022198,2]
[349370406,1737141034250,-500.0,0.00022198,2]
[349370407,1737141034260,-500.0,0.00022198,2]
[349370408,1737141034270,-500.0,0.00022198,2]
[349370409,1737141034280,-500.0,0.00022198,2]
[349370410,1737141034290,-500.0,0.00022198,2]
[349370411,1737141034300,-500.0,0.00022198,2]
[349370412,1737141034309,-500.0,0.00022198,2]
[349370413,1737141034319,-500.0,0.00022198,2]
[349370414,1737141034329,-500.0,0.00022198,2]
[349370415,1737141034539,-500.0,0.00022198,2]
[349370416,1737141034549,-500.0,0.00022198,2]
[349370417,1737141034560,-434.04,0.00022198,2]
[349370418,1737141034569,-504.14107082,0.00022198,2]
[349370419,1737141034579,-500.0,0.00022198,2]
[349370420,1737141034589,-500.0,0.00022198,2]
[349370421,1737141034601,-500.0,0.00022198,2]
[349370422,1737141034611,-500.0,0.00022198,2]
[349370423,1737141034622,-500.0,0.00022198,2]
[349370424,1737141034632,-500.0,0.00022198,2]
[349370425,1737141034641,-500.0,0.00022198,2]
[349370426,1737141034651,-500.0,0.00022198,2]
[349370427,1737141034661,-229.52,0.00022198,2]
[349370428,1737141034671,-215.71258728,0.00022198,2]
[349370429,1737141034681,-398.74744331,0.00022198,2]
[349370430,1737141034691,-500.0,0.00022198,2]
[349370431,1737141034700,-500.0,0.00022198,2]
[349370432,1737141034710,-500.0,0.00022198,2]
[349370433,1737141034719,-500.0,0.00022198,2]
[349370434,1737141034729,-500.0,0.00022198,2]
[349370435,1737141034738,-500.0,0.00022198,2]
[349370436,1737141034747,-500.0,0.00022198,2]
[349370437,1737141034757,-500.0,0.00022198,2]
[349370438,1737141034766,-296.7322571,0.00022198,2]
[349370439,1737141034775,-500.0,0.00022198,2]
[349370440,1737141034785,-500.0,0.00022198,2]
[349370441,1737141034795,-500.0,0.00022198,2]
[349370442,1737141034804,-500.0,0.00022198,2]
[349370443,1737141034814,-500.0,0.00022198,2]
[349370444,1737141034823,-500.0,0.00022198,2]
[349370445,1737141034832,-500.0,0.00022198,2]
[349370446,1737141034842,-500.0,0.00022198,2]
[349370447,1737141034851,-500.0,0.00022198,2]
[349370448,1737141034862,-500.0,0.00022198,2]
[349370449,1737141034872,-500.0,0.00022198,2]
[349370450,1737141034882,-500.0,0.00022198,2]
[349370451,1737141034891,-500.0,0.00022198,2]
[349370452,1737141034901,-500.0,0.00022198,2]
[349370453,1737141034911,-500.0,0.00022198,2]
[349370454,1737141034921,-500.0,0.00022198,2]
[349370455,1737141034930,-500.0,0.00022198,2]
[349370456,1737141034940,-500.0,0.00022198,2]
[349370457,1737141034949,-313.66,0.00022198,2]
[349370458,1737141034959,-500.0,0.00022198,2]
[349370459,1737141034968,-500.0,0.00022198,2]
[349370460,1737141034977,-500.0,0.00022198,2]
[349370461,1737141034986,-579.52,0.00022198,2]
[349370462,1737141034996,-579.52,0.00022198,2]
[349370463,1737141035006,-579.52,0.00022198,2]
[349370464,1737141035015,-500.0,0.00022198,2]
[349370465,1737141035024,-428.58,0.00022198,2]
[349370466,1737141035034,-500.0,0.00022198,2]
[349370467,1737141035043,-500.0,0.00022198,2]
[349370468,1737141035053,-571.62,0.00022198,2]
[349370469,1737141035062,-790.93,0.00022198,2]
[349370470,1737141035072,-790.93,0.00022198,2]
[349370471,1737141035082,-790.93,0.00022198,2]
[349370472,1737141035091,-500.0,0.00022198,2]
[349370473,1737141035100,-194.81,0.00022198,2]
[349370474,1737141035111,-500.0,0.00022198,2]
[349370475,1737141035121,-500.0,0.00022198,2]
[349370476,1737141035130,-500.0,0.00022198,2]
[349370477,1737141035140,-500.0,0.00022198,2]
[349370478,1737141035149,-500.0,0.00022198,2]
[349370479,1737141035159,-500.0,0.00022198,2]
[349370480,1737141035169,-500.0,0.00022198,2]
[349370481,1737141035178,-500.0,0.00022198,2]
[349370482,1737141035187,-500.0,0.00022198,2]
[349370483,1737141035197,-106505.045474,0.00022199,2]
[349370484,1737141035222,-797.15439952,0.00022199,2]
[349370488,1737141038358,-250.0,0.00021838,2]
[349370489,1737141038368,-756.94640711,0.00022199,2]
[349370490,1737141038404,-150226.31840707,0.00022199,2]
[349370491,1737141038414,-398679.5154499,0.00022199,2]
[349370492,1737141038423,-1300.0,0.000222,8]
[349370493,1737141038433,-7883.84824063,0.00022209,2]
[349370494,1737141038444,-3579.86579976,0.0002221,2]
[349370495,1737141038454,-1700.0,0.000223,8]
[349370496,1737141038464,-7883.84824063,0.00022321,2]
[349370497,1737141038473,-3579.86579976,0.00022321,2]
[349370498,1737141038483,-500.0,0.00022334,2]
[349370499,1737141038493,-200.86967707,0.00022344,3]
[349370500,1737141038502,-500.0,0.00022388,2]
[349370501,1737141038511,-300.0,0.000224,8]
[349370502,1737141038521,-7883.84824063,0.00022432,2]
[349370503,1737141038530,-3579.86579976,0.00022433,2]
[349370504,1737141038540,-300.0,0.000225,8]
[349370505,1737141038549,-7883.84824063,0.00022543,2]
[349370506,1737141038559,-3579.86579976,0.00022544,2]
[349370507,1737141038569,-1862.0,0.00022561,2]
[349370508,1737141038579,-2945.0,0.00022561,2]
[349370509,1737141038588,-820.0,0.00022561,2]
[349370510,1737141038600,-907.0,0.00022561,2]
[349370511,1737141038610,-1260.0,0.00022561,2]
[349370512,1737141038620,-3981.0,0.00022561,2]
[349370513,1737141038629,-537.0,0.00022561,2]
[349370514,1737141038638,-150.0,0.00022561,2]
[349370516,1737141038649,-200.86967707,0.00022567,3]
[349370517,1737141038659,-312.80282956,0.000226,2]
[349370519,1737141038669,-300.0,0.000226,8]
[349370521,1737141038679,-7883.84824063,0.00022655,2]
[349370522,1737141038688,-3579.86579976,0.00022655,2]
[349370523,1737141038697,-300.0,0.000227,8]
[349370524,1737141038706,-1000.0,0.00022721,2]
[349370525,1737141038715,-500.0,0.00022736,2]
[349370526,1737141038725,-500.0,0.00022736,2]
[349370527,1737141038734,-3579.86579976,0.00022766,2]
[349370528,1737141038744,-200.86967707,0.00022789,3]
[349370529,1737141038754,-884.0,0.000228,8]
[349370530,1737141038768,-3579.86579976,0.00022878,2]
[349370531,1737141038781,-174.49417444,0.000229,2]
[349370532,1737141038794,-3899.0,0.00022986,2]
[349370533,1737141038806,-150.0,0.00022986,2]
[349370534,1737141038817,-1174.0,0.00022986,2]
[349370535,1737141038827,-3579.86579976,0.00022989,2]
[349370536,1737141038838,-228.6967,0.00022999,2]
[349370537,1737141038848,-3135.18135906,0.00023,14]
[349370538,1737141038861,-200.86967707,0.00023011,3]
[349370539,1737141038873,-438.14,0.00023014,2]
[349370540,1737141038885,-438.14,0.00023014,2]
[349370541,1737141038896,-438.14,0.00023014,2]
[349370542,1737141038907,-248.0,0.00023014,2]
[349370543,1737141038918,-487.14334255,0.00023098,2]
[349370544,1737141038930,-500.0,0.00023098,2]
[349370545,1737141038941,-500.0,0.00023098,2]
[349370546,1737141038953,-191.44,0.00023098,2]
[349370547,1737141038964,-500.84,0.00023098,2]
[349370548,1737141038975,-369.46,0.00023098,2]
[349370549,1737141038986,-500.0,0.00023098,2]
[349370550,1737141038997,-506.45,0.00023098,2]
[349370551,1737141039007,-500.0,0.00023098,2]
[349370552,1737141039018,-282.74,0.00023098,2]
[349370553,1737141039028,-945.56629561,0.00023099,2]
[349370554,1737141039038,-379.0,0.000231,2]
[349370555,1737141039048,-3579.86579976,0.000231,2]
[349370556,1737141039060,-312.80282956,0.000231,2]
[349370557,1737141039072,-159.05,0.00023189,2]
[349370558,1737141039083,-879.81506206,0.0002319,2]
[349370559,1737141039096,-879.81506206,0.0002319,2]
[349370560,1737141039108,-879.81506206,0.0002319,2]
[349370561,1737141039119,-500.0,0.00023196,2]
[349370562,1737141039131,-500.0,0.00023196,2]
[349370563,1737141039142,-500.0,0.00023196,2]
[349370564,1737141039154,-500.0,0.00023196,2]
[349370565,1737141039165,-500.0,0.00023196,2]
[349370566,1737141039177,-500.0,0.00023196,2]
[349370567,1737141039188,-500.0,0.00023196,2]
[349370568,1737141039199,-500.0,0.00023196,2]
[349370569,1737141039210,-500.0,0.00023196,2]
[349370570,1737141039220,-500.0,0.00023196,2]
[349370571,1737141039231,-499.8,0.00023196,2]
[349370572,1737141039243,-500.0,0.00023196,2]
[349370573,1737141039255,-500.0,0.00023196,2]
[349370574,1737141039266,-500.0,0.00023196,2]
[349370575,1737141039278,-642.15,0.00023197,2]
[349370576,1737141039289,-500.0,0.00023197,2]
[349370577,1737141039299,-500.0,0.00023197,2]
[349370578,1737141039310,-500.0,0.00023197,2]
[349370579,1737141039322,-500.0,0.00023197,2]
[349370580,1737141039332,-500.0,0.00023197,2]
[349370581,1737141039343,-487.7458016,0.00023197,2]
[349370582,1737141039356,-500.0,0.00023197,2]
[349370583,1737141039367,-500.0,0.00023197,2]
[349370584,1737141039379,-500.0,0.00023197,2]
[349370585,1737141039391,-500.0,0.00023197,2]
[349370586,1737141039402,-500.0,0.00023197,2]
[349370587,1737141039413,-500.0,0.00023197,2]
[349370588,1737141039424,-510.61,0.00023197,2]
[349370589,1737141039435,-500.0,0.00023197,2]
[349370590,1737141039445,-500.0,0.00023197,2]
[349370591,1737141039455,-642.7739409,0.00023198,2]
[349370592,1737141039465,-500.77020984,0.00023198,2]
[349370593,1737141039476,-160.69622063,0.00023198,2]
[349370594,1737141039487,-500.90053633,0.00023198,2]
[349370595,1737141039499,-500.0,0.00023198,2]
[349370596,1737141039511,-279.93,0.00023198,2]
[349370597,1737141039523,-500.0,0.00023198,2]
[349370598,1737141039534,-500.0,0.00023198,2]
[349370599,1737141039543,-500.0,0.00023198,2]
[349370600,1737141039553,-487.81,0.00023198,2]
[349370601,1737141039563,-500.0,0.00023198,2]
[349370602,1737141039573,-500.0,0.00023198,2]
[349370603,1737141039583,-500.0,0.00023198,2]
[349370604,1737141039595,-348.46,0.00023198,2]
[349370605,1737141039608,-500.0,0.00023198,2]
[349370606,1737141039619,-357.65,0.00023198,2]
[349370607,1737141039631,-500.0,0.00023198,2]
[349370608,1737141039641,-500.0,0.00023198,2]
[349370609,1737141039654,-500.0,0.00023198,2]
[349370610,1737141039665,-500.0,0.00023198,2]
[349370611,1737141039677,-500.0,0.00023198,2]
[349370612,1737141039689,-500.0,0.00023198,2]
[349370613,1737141039700,-500.0,0.00023198,2]
[349370614,1737141039710,-579.52,0.00023198,2]
[349370615,1737141039720,-790.93,0.00023198,2]
[349370616,1737141039730,-150.47,0.00023199,2]
[349370617,1737141039743,-500.0,0.00023199,2]
[349370618,1737141039752,-500.0,0.00023199,2]
[349370619,1737141039763,-523.06955961,0.00023199,2]
[349370620,1737141039774,-500.0,0.00023199,2]
[349370621,1737141039785,-500.0,0.00023199,2]
[349370622,1737141039797,-500.0,0.00023199,2]
[349370623,1737141039807,-346.03,0.00023199,2]
[349370624,1737141039819,-500.0,0.00023199,2]
[349370625,1737141039829,-500.0,0.00023199,2]
[349370626,1737141039840,-500.0,0.00023199,2]
[349370627,1737141039850,-500.0,0.00023199,2]
[349370628,1737141039861,-500.0,0.00023199,2]
[349370629,1737141039872,-500.0,0.00023199,2]
[349370630,1737141039882,-500.0,0.00023199,2]
[349370631,1737141039892,-500.0,0.00023199,2]
[349370632,1737141039904,-500.0,0.00023199,2]
[349370633,1737141039914,-489.64,0.00023199,2]
[349370634,1737141039924,-500.0,0.00023199,2]
[349370635,1737141039935,-500.0,0.00023199,2]
[349370636,1737141039946,-491.95,0.00023199,2]
[349370637,1737141039957,-500.0,0.00023199,2]
[349370638,1737141039968,-500.0,0.00023199,2]
[349370639,1737141039978,-500.0,0.00023199,2]
[349370640,1737141039989,-500.0,0.00023199,2]
[349370641,1737141039999,-500.0,0.00023199,2]
[349370642,1737141040010,-500.0,0.00023199,2]
[349370643,1737141040022,-500.0,0.00023199,2]
[349370644,1737141040032,-500.0,0.00023199,2]
[349370645,1737141040044,-208.97,0.00023199,2]
[349370646,1737141040054,-500.0,0.00023199,2]
[349370647,1737141040064,-500.0,0.00023199,2]
[349370648,1737141040075,-457.79,0.00023199,2]
[349370649,1737141040086,-500.0,0.00023199,2]
[349370650,1737141040097,-500.0,0.00023199,2]
[349370651,1737141040108,-500.0,0.00023199,2]
[349370652,1737141040119,-500.0,0.00023199,2]
[349370653,1737141040129,-500.0,0.00023199,2]
[349370655,1737141040141,-500.0,0.00023199,2]
[349370656,1737141040152,-489.5,0.00023199,2]
[349370657,1737141040166,-506.45,0.00023199,2]
[349370658,1737141040176,-506.45,0.00023199,2]
[349370659,1737141040187,-506.45,0.00023199,2]
[349370660,1737141040199,-506.45,0.00023199,2]
[349370661,1737141040209,-506.45,0.00023199,2]
[349370663,1737141040220,-506.45,0.00023199,2]
[349370666,1737141040230,-506.45,0.00023199,2]
[349370668,1737141040240,-506.45,0.00023199,2]
[349370669,1737141040251,-506.45,0.00023199,2]
[349370670,1737141040261,-506.45,0.00023199,2]
[349370671,1737141040272,-506.45,0.00023199,2]
[349370672,1737141040283,-506.45,0.00023199,2]
[349370673,1737141040295,-506.45,0.00023199,2]
[349370674,1737141040305,-506.45,0.00023199,2]
[349370675,1737141040315,-506.45,0.00023199,2]
[349370676,1737141040326,-506.45,0.00023199,2]
[349370677,1737141040337,-506.45,0.00023199,2]
[349370678,1737141040347,-506.45,0.00023199,2]
[349370679,1737141040358,-506.45,0.00023199,2]
[349370680,1737141040370,-506.45,0.00023199,2]
[349370681,1737141040380,-506.59,0.00023199,2]
[349370682,1737141040391,-500.0,0.00023199,2]
[349370683,1737141040403,-177.99438054,0.00023199,2]
[349370684,1737141040413,-500.0,0.00023199,2]
[349370685,1737141040424,-500.0,0.00023199,2]
[349370686,1737141040435,-500.0,0.00023199,2]
[349370687,1737141040446,-500.0,0.00023199,2]
[349370688,1737141040458,-500.0,0.00023199,2]
[349370689,1737141040468,-516.44,0.00023199,2]
[349370690,1737141040479,-500.0,0.00023199,2]
[349370691,1737141040490,-500.0,0.00023199,2]
[349370692,1737141040501,-500.0,0.00023199,2]
[349370693,1737141040515,-500.0,0.00023199,2]
[349370694,1737141040526,-500.0,0.00023199,2]
[349370695,1737141040537,-500.0,0.00023199,2]
[349370696,1737141040548,-500.0,0.00023199,2]
[349370697,1737141040559,-500.0,0.00023199,2]
[349370698,1737141040570,-500.0,0.00023199,2]
[349370699,1737141040581,-500.0,0.00023199,2]
[349370700,1737141040594,-304.72,0.00023199,2]
[349370701,1737141040605,-500.0,0.00023199,2]
[349370702,1737141040617,-500.0,0.00023199,2]
[349370703,1737141040629,-500.0,0.00023199,2]
[349370704,1737141040642,-500.0,0.00023199,2]
[349370706,1737141040655,-500.0,0.00023199,2]
[349370708,1737141040666,-500.0,0.00023199,2]
[349370710,1737141040678,-500.0,0.00023199,2]
[349370712,1737141040689,-500.0,0.00023199,2]
[349370714,1737141040699,-500.0,0.00023199,2]
[349370716,1737141040708,-295.54,0.00023199,2]
[349370718,1737141040717,-500.0,0.00023199,2]
[349370720,1737141040726,-500.0,0.00023199,2]
[349370722,1737141040736,-449.26,0.00023199,2]
[349370724,1737141040745,-500.0,0.00023199,2]
[349370726,1737141040754,-500.0,0.00023199,2]
[349370728,1737141040766,-500.0,0.00023199,2]
[349370730,1737141040775,-500.0,0.00023199,2]
[349370732,1737141040785,-500.0,0.00023199,2]
[349370734,1737141040795,-500.0,0.00023199,2]
[349370736,1737141040804,-500.0,0.00023199,2]
[349370738,1737141040813,-500.0,0.00023199,2]
[349370772,1737141041040,-500.0,0.00023199,2]
[349370773,1737141041051,-602.68,0.00023199,2]
[349370774,1737141041061,-500.0,0.00023199,2]
[349370775,1737141041070,-468.41,0.00023199,2]
[349370776,1737141041080,-500.0,0.00023199,2]
[349370777,1737141041089,-500.0,0.00023199,2]
[349370778,1737141041098,-500.0,0.00023199,2]
[349370779,1737141041109,-500.0,0.00023199,2]
[349370780,1737141041119,-500.0,0.00023199,2]
[349370781,1737141041129,-500.0,0.00023199,2]
[349370782,1737141041138,-500.0,0.00023199,2]
[349370783,1737141041149,-500.0,0.00023199,2]
[349370784,1737141041159,-183.74,0.00023199,2]
[349370785,1737141041169,-500.0,0.00023199,2]
[349370786,1737141041179,-500.0,0.00023199,2]
[349370787,1737141041189,-500.0,0.00023199,2]
[349370788,1737141041199,-500.0,0.00023199,2]
[349370789,1737141041209,-500.0,0.00023199,2]
[349370790,1737141041219,-500.0,0.00023199,2]
[349370791,1737141041229,-442.39,0.00023199,2]
[349370792,1737141041239,-295.58,0.00023199,2]
[349370793,1737141041249,-500.0,0.00023199,2]
[349370794,1737141041258,-500.0,0.00023199,2]
[349370795,1737141041268,-500.0,0.00023199,2]
[349370796,1737141041278,-500.0,0.00023199,2]
[349370797,1737141041288,-244.24,0.00023199,2]
[349370798,1737141041297,-500.0,0.00023199,2]
[349370799,1737141041307,-500.0,0.00023199,2]
[349370800,1737141041316,-500.0,0.00023199,2]
[349370801,1737141041326,-500.0,0.00023199,2]
[349370802,1737141041335,-500.0,0.00023199,2]
[349370803,1737141041345,-549.58,0.00023199,2]
[349370804,1737141041354,-500.0,0.00023199,2]
[349370805,1737141041365,-500.0,0.00023199,2]
[349370806,1737141041375,-500.0,0.00023199,2]
[349370807,1737141041385,-500.0,0.00023199,2]
[349370808,1737141041395,-500.0,0.00023199,2]
[349370809,1737141041405,-571.54,0.00023199,2]
[349370810,1737141041415,-500.0,0.00023199,2]
[349370811,1737141041425,-500.0,0.00023199,2]
[349370812,1737141041435,-500.0,0.00023199,2]
[349370813,1737141041445,-500.0,0.00023199,2]
[349370814,1737141041454,-579.52,0.00023199,2]
[349370815,1737141041465,-500.0,0.00023199,2]
[349370816,1737141041475,-579.52,0.00023199,2]
[349370817,1737141041484,-500.0,0.00023199,2]
[349370818,1737141041494,-579.52,0.00023199,2]
[349370819,1737141041503,-500.0,0.00023199,2]
[349370820,1737141041513,-579.52,0.00023199,2]
[349370821,1737141041523,-579.52,0.00023199,2]
[349370822,1737141041532,-579.52,0.00023199,2]
[349370823,1737141041543,-500.0,0.00023199,2]
[349370824,1737141041553,-579.52,0.00023199,2]
[349370825,1737141041562,-500.0,0.00023199,2]
[349370826,1737141041571,-579.52,0.00023199,2]
[349370827,1737141041582,-500.0,0.00023199,2]
[349370828,1737141041593,-579.52,0.00023199,2]
[349370829,1737141041607,-500.0,0.00023199,2]
[349370830,1737141041617,-579.52,0.00023199,2]
[349370831,1737141041627,-500.0,0.00023199,2]
[349370832,1737141041636,-528.0004872,0.00023199,2]
[349370833,1737141041646,-579.52,0.00023199,2]
[349370834,1737141041656,-579.52,0.00023199,2]
[349370835,1737141041666,-579.52,0.00023199,2]
[349370836,1737141041677,-579.52,0.00023199,2]
[349370837,1737141041687,-579.52,0.00023199,2]
[349370838,1737141041696,-579.52,0.00023199,2]
[349370839,1737141041706,-579.52,0.00023199,2]
[349370840,1737141041716,-579.52,0.00023199,2]
[349370841,1737141041726,-579.52,0.00023199,2]
[349370842,1737141041735,-579.59,0.00023199,2]
[349370843,1737141041745,-790.93,0.00023199,2]
[349370844,1737141041754,-790.93,0.00023199,2]
[349370845,1737141041764,-790.93,0.00023199,2]
[349370846,1737141041773,-790.93,0.00023199,2]
[349370847,1737141041783,-790.93,0.00023199,2]
[349370848,1737141041792,-790.93,0.00023199,2]
[349370849,1737141041802,-790.93,0.00023199,2]
[349370850,1737141041812,-790.93,0.00023199,2]
[349370851,1737141041822,-790.93,0.00023199,2]
[349370852,1737141041831,-790.93,0.00023199,2]
[349370853,1737141041840,-790.93,0.00023199,2]
[349370854,1737141041850,-790.93,0.00023199,2]
[349370855,1737141041860,-790.93,0.00023199,2]
[349370856,1737141041870,-790.93,0.00023199,2]
[349370857,1737141041880,-790.93,0.00023199,2]
[349370858,1737141041890,-405.51,0.00023199,2]
[349370859,1737141041900,-790.93,0.00023199,2]
[349370860,1737141041909,-790.93,0.00023199,2]
[349370861,1737141041919,-790.93,0.00023199,2]
[349370862,1737141041930,-790.93,0.00023199,2]
[349370863,1737141041940,-791.1,0.00023199,2]
[349370864,1737141041952,-500.0,0.00023199,2]
[349370865,1737141041962,-500.0,0.00023199,2]
[349370866,1737141041972,-500.0,0.00023199,2]
[349370867,1737141041983,-500.0,0.00023199,2]
[349370868,1737141041992,-500.0,0.00023199,2]
[349370869,1737141042002,-500.0,0.00023199,2]
[349370870,1737141042011,-500.0,0.00023199,2]
[349370871,1737141042021,-500.0,0.00023199,2]
[349370872,1737141042030,-159.71,0.00023199,2]
[349370873,1737141042042,-1638958.18918412,0.000232,2]
[349370874,1737141042052,-12458.15344362,0.000232,2]
[349370875,1737141042063,-150.0,0.000232,2]
[349370876,1737141042074,-150.0,0.000232,2]
[349370877,1737141042084,-150.448,0.000232,2]
[349370878,1737141042095,-278.394,0.000232,2]
[349370879,1737141042105,-181.895,0.000232,2]
[349370880,1737141042115,-150.0,0.000232,2]
[349370881,1737141042125,-205.167,0.000232,2]
[349370882,1737141042135,-154.33,0.000232,2]
[349370883,1737141042144,-199.819,0.000232,2]
[349370884,1737141042154,-151.359,0.000232,2]
[349370885,1737141042163,-1288.759,0.000232,2]
[349370886,1737141042173,-2017.115,0.000232,2]
[349370887,1737141042182,-212.66,0.000232,2]
[349370888,1737141042192,-260.549,0.000232,2]
[349370889,1737141042201,-635.0,0.000232,2]
[349370890,1737141042210,-569.29,0.000232,2]
[349370891,1737141042220,-1116110.86655578,0.000232,2]
[349370892,1737141042252,-269.26,0.000232,2]
[349370893,1737141042278,-604417.29740364,0.000232,2]
[349370894,1737141042292,-31618.73167053,0.000232,2]
[349370895,1737141042307,-1553.39695711,0.000232,2]
[349370896,1737141042320,-2072.68791998,0.000232,2]
[349370897,1737141042334,-712.80004379,0.000232,2]
[349370898,1737141042348,-1651.25708863,0.000232,2]
[349370899,1737141042507,-1105.0,0.000231,2]
[349370900,1737141042517,-38847.92856533,0.000232,2]
[349370901,1737141042529,-500.59471651,0.000232,2]
[349370902,1737141042548,-6335.84841738,0.000232,2]
[349370908,1737141043532,-500.0,0.00022198,2]
[349370909,1737141043542,-596.81,0.00022198,2]
[349370910,1737141043551,-500.0,0.00022198,2]
[349370911,1737141043561,-500.0,0.00022198,2]
[349370912,1737141043570,-500.0,0.00022198,2]
[349370913,1737141043580,-7883.84824063,0.00022766,2]
[349370914,1737141043590,-500.0,0.00023196,2]
[349370915,1737141043603,-500.0,0.00023199,2]
[349370916,1737141043613,-330.35,0.00023199,2]
[349370917,1737141043623,-665004.80759013,0.000232,2]
[349370926,1737141046363,-500.0,0.00022198,2]
[349370927,1737141046373,-5.3191079,0.00022198,2]
[349370928,1737141046414,-494.6808921,0.00022198,2]
[349370929,1737141046424,-500.0,0.00022198,2]
[349370930,1737141046433,-500.0,0.00022198,2]
[349370931,1737141046443,-500.0,0.00022198,2]
[349370932,1737141046454,-7883.84824063,0.00022877,2]
[349370933,1737141046464,-500.0,0.00023098,2]
[349370934,1737141046474,-500.0,0.00023199,2]
[349370935,1737141046485,-500.0,0.00023199,2]
[349370936,1737141046494,-500.0,0.00023199,2]
[349370937,1737141046504,-320.44,0.00023199,2]
[349370938,1737141046513,-11910.40861716,0.000232,2]
[349370939,1737141046552,-8533.40816019,0.000232,2]
[349370940,1737141046563,-5282.90001,0.000232,2]
[349370941,1737141046576,-551.58542842,0.000232,2]
[349370942,1737141046592,-20993.904,0.000232,2]
[349370948,1737141382663,182.69,0.00010137,2]
[349370949,1737141382876,182.69,0.00016813,2]
[349370951,1737141400766,1000.0,0.00024,120]
[349370952,1737141489657,1000.0,0.00024,120]